bitfinex-derivatives/quotes_SOLF0:USTF0_20250821
["timestamp","ask_amount","ask_price","bid_price","bid_amount"]
[1755761185388,2.30618344,186.89,186.82,5.3526]
[1755761185788,2.30618344,186.89,186.81,2.91]
[1755761186289,2.82,186.88,186.81,2.91]
[1755761187189,2.30618344,186.86,186.77,5.19618344]
[1755761187389,2.30618344,186.83,186.77,2.89]
[1755761188485,2.30618344,186.83,186.77,8.2441]
[1755761188894,2.30618344,186.83,186.77,2.89]
[1755761189397,2.30618344,186.83,186.78,5.3537]
[1755761189592,2.82,186.82,186.78,2.89]
[1755761191096,2.30618344,186.83,186.79,2.89]
[1755761191297,5.12618344,186.83,186.79,2.89]
[1755761192699,2.30618344,186.83,186.72,2.30618344]
[1755761192904,5.12618344,186.83,186.73,2.89]
[1755761193600,5.12618344,186.83,186.76,5.3542]
[1755761194002,5.12618344,186.83,186.76,8.2442]
[1755761194304,5.12618344,186.83,186.76,2.89]
[1755761194715,2.82,186.82,186.72,5.19618344]
[1755761195092,2.82,186.82,186.73,5.3552]
[1755761195498,2.82,186.82,186.72,5.19618344]
[1755761195698,2.82,186.82,186.73,2.89]
[1755761197506,2.82,186.82,186.72,2.30618344]
[1755761197507,2.82,186.82,186.75,5.3547]
[1755761197712,2.30618344,186.83,186.76,2.89]
[1755761198407,2.30618344,186.83,186.77,5.354]
[1755761198702,2.30618344,186.83,186.76,2.89]
[1755761200599,2.82,186.82,186.76,2.89]
[1755761202008,2.30618344,186.83,186.76,2.89]
[1755761203311,2.30618344,186.84,186.76,2.89]
[1755761203906,2.30618344,186.84,186.76,8.2443]
[1755761204909,2.30618344,186.84,186.77,5.3541]
[1755761205813,2.30618344,186.84,186.78,5.3537]
[1755761206008,2.30618344,186.84,186.78,8.2437]
[1755761208314,2.30618344,186.84,186.78,2.89]
[1755761210014,2.82,186.85,186.78,2.89]
[1755761211017,2.82,186.85,186.78,8.2437]
[1755761212213,2.82,186.85,186.78,2.89]
[1755761212617,2.30618344,186.84,186.78,2.89]
[1755761212810,5.12618344,186.82,186.73,2.89]
[1755761213017,5.12618344,186.82,186.73,8.245]
[1755761213313,5.12618344,186.82,186.74,2.89]
[1755761213516,5.12618344,186.82,186.74,8.2448]
[1755761214113,5.12618344,186.82,186.74,2.89]
[1755761214922,5.12618344,186.82,186.74,8.2449]
[1755761215622,5.12618344,186.82,186.76,2.89]
[1755761216123,2.82,186.82,186.76,2.89]
[1755761216722,2.30618344,186.83,186.77,3.04]
[1755761217923,2.30618344,186.83,186.77,8.3941]
[1755761218325,2.30618344,186.83,186.77,3.04]
[1755761219121,5.15618344,186.83,186.77,3.04]
[1755761220222,2.30618344,186.81,186.7,2.30618344]
[1755761220527,2.85,186.77,186.7,3.04]
[1755761221124,2.30618344,186.76,186.7,3.04]
[1755761222125,2.85,186.77,186.7,3.04]
[1755761222717,2.85,186.77,186.7,8.396]
[1755761223819,2.85,186.77,186.7,3.04]
[1755761226325,2.85,186.77,186.66,85.77431304]
[1755761227325,2.30618344,186.75,186.67,3.04]
[1755761227625,2.85,186.74,186.67,3.04]
[1755761231630,2.85,186.74,186.67,8.3968]
[1755761233032,2.85,186.74,186.67,3.04]
[1755761233523,2.85,186.74,186.67,8.397]
[1755761235136,2.85,186.74,186.67,3.04]
[1755761235832,2.85,186.74,186.67,8.3968]
[1755761236035,2.85,186.74,186.67,3.04]
[1755761237634,2.85,186.72,186.63,3.04]
[1755761237833,2.30618344,186.71,186.63,3.04]
[1755761238634,2.85,186.7,186.63,3.04]
[1755761242037,2.30618344,186.69,186.6,135.9]
[1755761242239,2.85,186.68,186.6,135.9]
[1755761242836,2.85,186.68,186.6,141.2589]
[1755761243445,2.85,186.68,186.6,135.9]
[1755761244143,2.30618344,186.66,186.6,3.04]
[1755761247848,5.07618344,186.66,186.6,3.04]
[1755761254950,2.30618344,186.66,186.6,3.04]
[1755761255247,2.77,186.63,186.6,3.04]
[1755761255642,2.77,186.65,186.57,4.01617]
[1755761255852,2.30618344,186.64,186.57,4.01617]
[1755761256051,2.77,186.65,186.58,2.77]
[1755761256249,2.30618344,186.67,186.6,2.77]
[1755761256950,2.77,186.64,186.57,4.01617]
[1755761258252,2.77,186.64,186.58,2.77]
[1755761258653,2.30618344,186.62,186.58,2.77]
[1755761258953,2.77,186.61,186.58,2.77]
[1755761259750,5.07618344,186.62,186.57,1.24617]
[1755761260048,2.30618344,186.62,186.57,1.24617]
[1755761260256,2.30618344,186.62,186.6,2.77]
[1755761261352,5.07618344,186.62,186.58,2.77]
[1755761261758,5.07618344,186.62,186.57,1.24617]
[1755761261959,5.07618344,186.62,186.59,2.77]
[1755761264154,2.77,186.61,186.58,2.77]
[1755761264354,2.77,186.61,186.57,6.60597]
[1755761264554,2.77,186.62,186.58,2.77]
[1755761264862,2.77,186.62,186.59,2.77]
[1755761265261,2.30618344,186.63,186.57,1.24617]
[1755761265459,2.30618344,186.63,186.59,2.77]
[1755761265764,2.30618344,186.63,186.6,2.77]
[1755761266063,2.77,186.66,186.58,2.77]
[1755761266064,2.30618344,186.66,186.58,2.77]
[1755761266361,2.30618344,186.66,186.6,8.1288]
[1755761267056,5.07618344,186.66,186.61,5.3587]
[1755761267262,2.30618344,186.75,186.58,2.77]
[1755761267263,2.30618344,186.68,186.58,2.77]
[1755761267458,2.30618344,186.68,186.59,2.30618344]
[1755761267657,2.30618344,186.68,186.6,2.77]
[1755761268162,2.30618344,186.68,186.61,5.3586]
[1755761270462,2.30618344,186.68,186.62,2.77]
[1755761270664,2.30618344,186.68,186.62,8.1283]
[1755761271463,2.30618344,186.68,186.62,2.77]
[1755761272164,2.30618344,186.68,186.62,8.1284]
[1755761272569,5.07618344,186.72,186.62,5.07618344]
[1755761272761,5.07618344,186.72,186.66,2.77]
[1755761273962,2.77,186.7,186.66,2.77]
[1755761274265,2.77,186.68,186.63,8.1279]
[1755761274464,2.77,186.68,186.65,2.77]
[1755761275167,2.77,186.68,186.66,2.77]
[1755761275367,2.77,186.69,186.66,2.77]
[1755761275563,2.30618344,186.7,186.64,5.3578]
[1755761275767,5.07618344,186.72,186.65,2.77]
[1755761276466,5.07618344,186.72,186.65,8.1273]
[1755761276669,5.07618344,186.72,186.65,2.77]
[1755761276863,2.30618344,186.74,186.68,5.3567]
[1755761277066,2.30618344,186.74,186.65,2.88]
[1755761277569,2.30618344,186.74,186.67,2.88]
[1755761279068,2.95,186.73,186.64,2.88]
[1755761279261,2.30618344,186.72,186.64,2.88]
[1755761279564,2.95,186.71,186.64,2.88]
[1755761280365,2.95,186.75,186.66,2.88]
[1755761280665,2.95,186.78,186.68,2.30618344]
[1755761280968,2.95,186.78,186.71,8.2358]
[1755761281164,2.95,186.78,186.71,2.88]
[1755761281668,2.30618344,186.79,186.72,2.88]
[1755761281968,2.30618344,186.79,186.73,5.3551]
[1755761282466,2.30618344,186.79,186.74,2.88]
[1755761282661,2.95,186.81,186.74,2.88]
[1755761286476,2.95,186.81,186.74,8.235]
[1755761286674,2.95,186.78,186.68,2.88]
[1755761287170,5.25618344,186.76,186.68,2.88]
[1755761287569,5.25618344,186.76,186.68,8.2364]
[1755761287975,5.25618344,186.76,186.69,2.88]
[1755761290880,2.95,186.73,186.66,2.88]
[1755761291581,2.95,186.73,186.66,8.2372]
[1755761291773,2.95,186.73,186.66,2.88]
[1755761293978,2.30618344,186.71,186.62,2.30618344]
[1755761294182,2.95,186.7,186.62,5.18618344]
[1755761294575,2.95,186.7,186.62,2.88]
[1755761295075,2.95,186.7,186.62,8.2382]
[1755761296480,2.95,186.7,186.63,5.358]
[1755761296783,2.95,186.7,186.63,2.88]
[1755761298580,2.30618344,186.68,186.6,8.2389]
[1755761298778,2.95,186.67,186.6,8.2389]
[1755761298979,2.95,186.67,186.6,2.88]
[1755761299884,2.30618344,186.65,186.6,2.88]
[1755761300086,2.95,186.64,186.6,2.88]
[1755761300286,2.30618344,186.65,186.6,2.88]
[1755761300485,2.95,186.64,186.6,2.88]
[1755761302087,2.95,186.64,186.58,5.3595]
[1755761302386,2.95,186.64,186.6,2.88]
[1755761302688,2.95,186.64,186.61,2.88]
[1755761304986,2.30618344,186.65,186.58,5.3595]
[1755761305188,2.30618344,186.63,186.57,1.24617]
[1755761305583,2.95,186.62,186.57,1.24617]
[1755761305784,2.95,186.61,186.57,4.12617]
[1755761305985,5.25618344,186.61,186.57,4.12617]
[1755761307691,3.03,186.6,186.57,4.12617]
[1755761308093,2.30618344,186.61,186.57,4.12617]
[1755761308393,5.33618344,186.61,186.57,4.12617]
[1755761308885,3.03,186.6,186.57,4.12617]
[1755761309088,5.33618344,186.59,186.57,1.24617]
[1755761309283,3.03,186.58,186.57,1.24617]
[1755761311491,3.03,186.54,186.47,2.87]
[1755761311888,3.03,186.54,186.47,8.2326]
[1755761312688,2.30618344,186.53,186.47,8.2326]
[1755761312891,2.30618344,186.51,186.47,2.87]
[1755761313093,3.03,186.5,186.47,2.87]
[1755761313293,5.33618344,186.49,186.43,2.87]
[1755761314192,2.30618344,186.47,186.43,2.87]
[1755761314494,5.33618344,186.47,186.43,2.87]
[1755761316295,2.30618344,186.45,186.34,2.30618344]
[1755761316495,2.30618344,186.45,186.37,2.87]
[1755761317091,2.30618344,186.45,186.38,5.3651]
[1755761317394,2.30618344,186.45,186.37,2.87]
[1755761317594,2.30618344,186.45,186.38,5.3653]
[1755761317794,2.30618344,186.45,186.37,2.87]
[1755761318794,2.30618344,186.45,186.38,5.3651]
[1755761319300,2.30618344,186.45,186.37,8.2355]
[1755761319600,5.33618344,186.45,186.37,8.2355]
[1755761320903,5.33618344,186.45,186.37,2.87]
[1755761322105,5.33618344,186.45,186.37,8.2356]
[1755761322405,5.33618344,186.45,186.37,2.87]
[1755761323802,3.03,186.44,186.37,2.87]
[1755761323998,5.33618344,186.41,186.33,2.87]
[1755761324709,5.33618344,186.41,186.33,8.2367]
[1755761325414,5.33618344,186.41,186.34,5.3664]
[1755761325717,5.33618344,186.41,186.35,2.87]
[1755761326918,2.30618344,186.41,186.33,5.3665]
[1755761327310,2.30618344,186.41,186.34,2.87]
[1755761328608,2.30618344,186.41,186.35,5.3662]
[1755761329113,2.30618344,186.41,186.36,5.3658]
[1755761329317,5.33618344,186.41,186.37,2.87]
[1755761329918,3.03,186.4,186.37,2.87]
[1755761330417,5.33618344,186.43,186.37,2.87]
[1755761330720,3.03,186.46,186.37,2.87]
[1755761330918,3.03,186.46,186.38,2.87]
[1755761331114,5.33618344,186.49,186.4,2.87]
[1755761331417,3.03,186.49,186.42,2.87]
[1755761332419,3.03,186.49,186.43,5.3636]
[1755761332820,3.03,186.49,186.44,5.3635]
[1755761333119,3.03,186.49,186.45,2.87]
[1755761334016,5.33618344,186.53,186.45,2.87]
[1755761334520,5.33618344,186.53,186.46,5.3629]
[1755761335314,5.33618344,186.53,186.45,2.87]
[1755761336518,5.33618344,186.53,186.45,8.2332]
[1755761336722,5.33618344,186.53,186.45,2.87]
[1755761336920,5.33618344,186.53,186.46,5.3626]
[1755761337516,5.33618344,186.53,186.47,5.3626]
[1755761337719,5.33618344,186.53,186.45,2.87]
[1755761338120,3.03,186.53,186.49,2.92]
[1755761340026,2.97,186.54,186.45,2.92]
[1755761340523,2.97,186.51,186.43,5.3636]
[1755761340725,2.97,186.51,186.42,2.92]
[1755761341418,2.97,186.51,186.47,2.92]
[1755761341921,2.30618344,186.53,186.47,2.92]
[1755761342124,2.97,186.51,186.47,2.92]
[1755761342422,2.97,186.53,186.47,2.92]
[1755761343024,2.97,186.53,186.49,2.92]
[1755761343624,2.97,186.53,186.49,8.2821]
[1755761343827,2.97,186.56,186.5,2.92]
[1755761344717,2.97,186.56,186.5,8.2816]
[1755761344920,2.97,186.56,186.5,2.92]
[1755761345622,2.97,186.56,186.51,5.3614]
[1755761345825,2.97,186.55,186.51,8.2814]
[1755761346224,2.97,186.54,186.51,2.92]
[1755761348225,2.97,186.56,186.48,5.3622]
[1755761348829,2.30618344,186.54,186.47,8.2826]
[1755761349128,2.97,186.53,186.47,8.2826]
[1755761349530,2.97,186.53,186.49,2.92]
[1755761350221,2.97,186.53,186.5,2.92]
[1755761350427,2.30618344,186.54,186.5,2.92]
[1755761350823,5.27618344,186.54,186.5,2.92]
[1755761353031,5.27618344,186.57,186.45,2.92]
[1755761353633,5.27618344,186.57,186.5,5.3617]
[1755761353834,5.27618344,186.57,186.5,2.92]
[1755761354635,5.27618344,186.57,186.5,8.2818]
[1755761355434,5.27618344,186.57,186.51,5.3614]
[1755761356534,5.27618344,186.57,186.52,5.3612]
[1755761356839,5.27618344,186.57,186.53,2.92]
[1755761357341,5.27618344,186.57,186.53,8.2809]
[1755761358037,5.27618344,186.57,186.54,2.92]
[1755761360340,5.27618344,186.57,186.47,2.92]
[1755761360937,5.27618344,186.57,186.5,8.2816]
[1755761362038,5.27618344,186.57,186.51,5.3614]
[1755761363137,5.27618344,186.57,186.53,2.92]
[1755761363540,2.97,186.56,186.53,2.92]
[1755761364930,2.97,186.55,186.47,2.92]
[1755761365131,2.97,186.55,186.49,5.362]
[1755761365930,2.97,186.55,186.5,5.3619]
[1755761366131,2.83,186.54,186.51,2.96]
[1755761367238,2.83,186.53,186.42,2.96]
[1755761367439,2.83,186.5,186.42,2.96]
[1755761368046,2.83,186.5,186.44,8.3236]
[1755761369344,2.30618344,186.57,186.46,2.96]
[1755761369744,2.30618344,186.57,186.5,2.96]
[1755761369941,5.13618344,186.57,186.5,2.96]
[1755761371747,2.30618344,186.55,186.5,2.96]
[1755761371945,2.83,186.54,186.5,2.96]
[1755761374145,2.30618344,186.53,186.47,2.96]
[1755761374650,2.30618344,186.51,186.47,2.96]
[1755761374947,2.83,186.5,186.47,2.96]
[1755761376046,2.30618344,186.51,186.47,2.96]
[1755761376242,5.13618344,186.51,186.47,2.96]
[1755761376849,2.83,186.51,186.46,5.363]
[1755761377048,2.83,186.51,186.48,2.96]
[1755761378941,2.30618344,186.53,186.47,8.3227]
[1755761381349,5.13618344,186.55,186.47,2.96]
[1755761381946,2.83,186.55,186.47,2.96]
[1755761382553,2.30618344,186.57,186.51,8.3214]
[1755761382753,2.30618344,186.57,186.51,2.96]
[1755761382952,2.83,186.58,186.51,2.96]
[1755761383154,2.83,186.58,186.55,2.96]
[1755761383454,5.13618344,186.61,186.55,2.96]
[1755761383857,2.83,186.61,186.55,8.3204]
[1755761384058,5.13618344,186.61,186.55,8.3204]
[1755761385058,5.13618344,186.61,186.55,2.96]
[1755761386156,5.13618344,186.61,186.55,8.3204]
[1755761388559,5.13618344,186.61,186.55,2.96]
[1755761388759,2.83,186.61,186.55,2.96]
[1755761389155,2.83,186.61,186.56,5.36]
[1755761389349,2.30618344,186.63,186.57,2.96]
[1755761389858,2.30618344,186.63,186.57,8.3197]
[1755761390053,2.30618344,186.63,186.57,2.96]
[1755761390258,2.30618344,186.63,186.58,5.3594]
[1755761390562,5.13618344,186.63,186.59,2.96]
[1755761392260,2.30618344,186.63,186.6,2.96]
[1755761392457,5.13618344,186.66,186.6,2.96]
[1755761393858,2.83,186.63,186.56,2.96]
[1755761394762,2.83,186.63,186.57,5.3597]
[1755761394956,2.83,186.63,186.56,2.96]
[1755761396470,2.83,186.63,186.59,2.89]
[1755761397969,2.77,186.64,186.6,2.89]
[1755761398472,2.30618344,186.66,186.6,2.89]
[1755761398665,2.77,186.63,186.6,2.89]
[1755761400173,2.77,186.64,186.57,5.3596]
[1755761400378,2.77,186.62,186.57,5.3596]
[1755761400669,2.77,186.6,186.57,2.89]
[1755761400874,2.77,186.58,186.5,2.89]
[1755761401068,2.77,186.54,186.5,2.89]
[1755761401268,2.77,186.54,186.51,2.89]
[1755761401467,132.38,186.62,186.4,10.7291]
[1755761401468,2.30618344,186.57,186.52,2.89]
[1755761401668,2.77,186.59,186.47,2.30618344]
[1755761401669,5.07618344,186.59,186.47,2.30618344]
[1755761401874,5.07618344,186.62,186.51,2.30618344]
[1755761402071,5.07618344,186.62,186.52,2.89]
[1755761402469,5.07618344,186.62,186.55,2.89]
[1755761403172,2.77,186.59,186.52,2.89]
[1755761403372,2.30618344,186.58,186.52,2.89]
[1755761403675,2.77,186.59,186.52,2.89]
[1755761404272,2.30618344,186.62,186.56,2.89]
[1755761405277,2.30618344,186.62,186.56,8.25]
[1755761405474,2.30618344,186.62,186.56,2.89]
[1755761405671,2.30618344,186.64,186.59,5.359]
[1755761405871,5.07618344,186.66,186.56,2.89]
[1755761406569,5.07618344,186.66,186.6,5.3588]
[1755761407476,5.07618344,186.66,186.61,5.3587]
[1755761407773,5.07618344,186.66,186.61,8.2487]
[1755761408371,5.07618344,186.66,186.61,5.3587]
[1755761408576,5.07618344,186.66,186.62,2.89]
[1755761408770,5.07618344,186.66,186.62,8.2484]
[1755761409171,132.38,186.67,186.63,2.89]
[1755761409575,122.9494207,186.69,186.63,8.2482]
[1755761409778,122.9494207,186.69,186.63,2.89]
[1755761409973,120.64323726,186.69,186.63,2.89]
[1755761410282,120.64323726,186.69,186.63,8.248]
[1755761411783,120.64323726,186.69,186.63,2.89]
[1755761412683,120.64323726,186.69,186.63,8.2481]
[1755761413384,2.77,186.68,186.64,8.2477]
[1755761414485,2.77,186.68,186.59,2.89]
[1755761414886,5.07618344,186.68,186.62,5.3585]
[1755761415185,2.77,186.65,186.59,2.89]
[1755761416583,2.77,186.65,186.61,8.2487]
[1755761418687,2.77,186.63,186.6,5.359]
[1755761418888,2.77,186.63,186.6,8.249]
[1755761419388,5.07618344,186.66,186.6,8.249]
[1755761419788,5.07618344,186.66,186.62,2.89]
[1755761419985,2.77,186.65,186.62,2.89]
[1755761420192,5.07618344,186.68,186.59,2.89]
[1755761420789,2.77,186.68,186.59,2.89]
[1755761422788,5.07618344,186.68,186.59,2.89]
[1755761423694,2.77,186.67,186.59,2.89]
[1755761423990,2.30618344,186.64,186.59,2.89]
[1755761424191,2.77,186.63,186.58,5.3596]
[1755761424496,2.77,186.67,186.61,5.3585]
[1755761424793,2.30618344,186.68,186.62,2.89]
[1755761425494,5.07618344,186.68,186.62,2.89]
[1755761426489,2.88,186.65,186.58,3.0]
[1755761426692,2.30618344,186.64,186.58,3.0]
[1755761426895,2.30618344,186.62,186.55,3.0]
[1755761427196,2.30618344,186.62,186.55,8.3604]
[1755761427994,2.30618344,186.62,186.55,3.0]
[1755761428893,2.30618344,186.62,186.55,8.3604]
[1755761429692,5.94897413,186.68,186.52,363.18]
[1755761429693,2.30618344,186.6,186.52,363.18]
[1755761429892,2.30618344,186.58,186.52,363.18]
[1755761430290,2.30618344,186.58,186.52,3.0]
[1755761431595,2.30618344,186.58,186.53,5.3608]
[1755761431794,2.30618344,186.58,186.54,3.0]
[1755761431995,2.30618344,186.58,186.55,3.0]
[1755761432599,2.30618344,186.58,186.51,3.0]
[1755761433097,2.30618344,186.56,186.51,3.0]
[1755761433399,2.30618344,186.54,186.46,135.26]
[1755761433798,2.30618344,186.54,186.47,3.0]
[1755761435101,2.30618344,186.54,186.48,5.3623]
[1755761436298,2.30618344,186.54,186.5,3.0]
[1755761437001,2.30618344,186.54,186.51,3.0]
[1755761437397,5.18618344,186.54,186.48,3.0]
[1755761439295,5.94897413,186.62,186.43,136.7793852]
[1755761439296,2.30618344,186.52,186.43,7.4993852]
[1755761439603,2.30618344,186.5,186.43,3.0]
[1755761439995,2.30618344,186.5,186.43,8.3637]
[1755761440501,2.88,186.51,186.43,3.0]
[1755761440796,2.88,186.54,186.44,3.0]
[1755761441598,2.30618344,186.51,186.46,3.0]
[1755761441798,2.88,186.5,186.46,3.0]
[1755761441998,2.88,186.49,186.46,3.0]
[1755761442701,2.88,186.49,186.43,8.3638]
[1755761442898,2.30618344,186.51,186.43,8.3638]
[1755761443100,2.30618344,186.49,186.43,3.0]
[1755761446805,2.30618344,186.49,186.43,8.3639]
[1755761447206,2.30618344,186.49,186.43,3.0]
[1755761451507,3.69485787,186.6,186.43,3.0]
[1755761451709,2.30618344,186.49,186.43,3.0]
[1755761452709,2.30618344,186.49,186.43,8.3637]
[1755761454004,1.14,186.51,186.43,8.3637]
[1755761454200,2.30618344,186.5,186.4,2.30618344]
[1755761454400,2.30618344,186.5,186.41,3.0]
[1755761455510,2.30618344,186.5,186.44,5.3634]
[1755761455704,2.30618344,186.5,186.44,8.3634]
[1755761456307,2.30618344,186.5,186.46,2.96]
[1755761456509,2.30618344,186.5,186.45,5.3631]
[1755761456510,2.30618344,186.51,186.4,2.30618344]
[1755761456704,2.30618344,186.51,186.43,2.96]
[1755761456905,2.30618344,186.51,186.42,2.96]
[1755761456906,1.15,186.5,186.42,2.96]
[1755761457107,2.30618344,186.49,186.42,2.96]
[1755761457706,3.45618344,186.49,186.45,2.96]
[1755761458504,2.30618344,186.49,186.45,5.3632]
[1755761458705,3.45618344,186.51,186.47,2.96]
[1755761459311,2.30618344,186.51,186.46,8.3229]
[1755761459511,3.45618344,186.53,186.47,2.96]
[1755761460010,132.28,186.6,186.44,2.30618344]
[1755761460206,3.45618344,186.59,186.49,2.30618344]
[1755761460402,3.45618344,186.59,186.5,2.96]
[1755761461212,2.30618344,186.55,186.44,134.58618344]
[1755761461511,2.30618344,186.55,186.49,5.3621]
[1755761461711,2.30618344,186.55,186.48,2.96]
[1755761462108,1.15,186.56,186.46,2.30618344]
[1755761462109,1.15,186.56,186.53,2.96]
[1755761462308,3.45618344,186.57,186.53,2.96]
[1755761462812,1.15,186.57,186.53,2.96]
[1755761463206,1.15,186.57,186.52,5.3611]
[1755761463402,1.15,186.57,186.54,2.96]
[1755761463612,1.15,186.59,186.56,2.96]
[1755761463909,3.45618344,186.63,186.56,5.36]
[1755761464116,3.45618344,186.63,186.53,2.96]
[1755761464616,3.45618344,186.63,186.58,5.3595]
[1755761464913,3.45618344,186.63,186.59,2.96]
[1755761465308,3.45618344,186.66,186.6,2.96]
[1755761467118,1.15,186.63,186.56,2.96]
[1755761467804,1.15,186.63,186.5,132.24]
[1755761467805,1.15,186.61,186.52,2.96]
[1755761468210,1.15,186.61,186.54,2.96]
[1755761468603,1.15,186.61,186.54,8.3205]
[1755761468805,1.15,186.61,186.54,2.96]
[1755761469317,2.30618344,186.62,186.56,2.96]
[1755761470107,2.30618344,186.62,186.51,2.30618344]
[1755761470108,2.30618344,186.62,186.57,5.3599]
[1755761470311,2.30618344,186.62,186.58,2.96]
[1755761470515,3.45618344,186.62,186.58,2.96]
[1755761472515,1.16,186.61,186.58,2.96]
[1755761473020,1.16,186.6,186.54,2.96]
[1755761473415,3.46618344,186.6,186.54,2.96]
[1755761476618,2.30618344,186.58,186.54,2.96]
[1755761476818,1.16,186.57,186.54,2.96]
[1755761477218,1.16,186.57,186.51,8.3214]
[1755761478818,1.16,186.57,186.52,5.3613]
[1755761479123,2.30618344,186.58,186.55,2.96]
[1755761479320,2.30618344,186.58,186.5,132.24]
[1755761479321,3.46618344,186.6,186.57,2.96]
[1755761479527,2.30618344,186.6,186.57,2.96]
[1755761479824,2.30618344,186.6,186.58,2.96]
[1755761480022,2.30618344,186.66,186.58,2.96]
[1755761480023,3.46618344,186.62,186.58,2.96]
[1755761480321,3.46618344,186.62,186.59,2.96]
[1755761481123,1.16,186.61,186.56,5.3601]
[1755761481329,2.30618344,186.6,186.55,2.96]
[1755761481530,3.46618344,186.6,186.5,134.54618344]
[1755761481733,3.46618344,186.6,186.56,2.96]
[1755761482036,2.30618344,186.62,186.51,2.96]
[1755761482238,2.30618344,186.62,186.5,134.54618344]
[1755761482239,2.30618344,186.63,186.53,2.96]
[1755761482531,2.30618344,186.63,186.57,5.3597]
[1755761482837,2.30618344,186.63,186.6,2.96]
[1755761483230,3.46618344,186.64,186.6,2.96]
[1755761484636,2.30618344,186.67,186.56,2.30618344]
[1755761484933,2.30618344,186.67,186.57,2.96]
[1755761485534,119.03323726,186.69,186.61,2.96]
[1755761485834,2.30618344,186.68,186.61,2.96]
[1755761486235,121.3394207,186.69,186.61,8.3186]
[1755761488236,1.16,186.69,186.62,2.97]
[1755761488438,2.30618344,186.71,186.62,2.97]
[1755761488637,2.30618344,186.71,186.64,5.3577]
[1755761488837,2.30618344,186.71,186.65,2.97]
[1755761489130,2.30618344,186.71,186.65,8.3275]
[1755761489530,133.32,186.72,186.65,8.3275]
[1755761489531,133.32,186.72,186.65,2.97]
[1755761490042,133.32,186.72,186.66,5.3573]
[1755761492034,133.32,186.72,186.65,2.97]
[1755761492634,133.32,186.72,186.66,5.3573]
[1755761493334,1.16,186.72,186.65,2.97]
[1755761493937,1.16,186.8,186.66,2.97]
[1755761494133,2.30618344,186.77,186.66,2.97]
[1755761494438,1.16,186.76,186.69,5.3563]
[1755761495039,1.16,186.76,186.68,2.97]
[1755761495936,1.16,186.76,186.69,5.3562]
[1755761496536,1.16,186.74,186.68,2.97]
[1755761496737,1.16,186.74,186.65,2.97]
[1755761496938,2.30618344,186.72,186.65,2.97]
[1755761497738,2.30618344,186.72,186.66,5.3571]
[1755761498343,2.30618344,186.72,186.62,2.30618344]
[1755761498539,3.46618344,186.74,186.65,2.97]
[1755761499538,3.46618344,186.74,186.67,5.3568]
[1755761499940,3.46618344,186.74,186.68,5.3567]
[1755761500140,3.46618344,186.74,186.68,8.3267]
[1755761500440,3.46618344,186.74,186.68,2.97]
[1755761500930,1.16,186.74,186.68,2.97]
[1755761501131,3.46618344,186.74,186.68,2.97]
[1755761502241,3.46618344,186.74,186.68,8.3267]
[1755761502438,1.16,186.73,186.65,2.97]
[1755761502633,2.30618344,186.72,186.58,360.18]
[1755761502840,2.30618344,186.7,186.62,2.97]